[Event "European Amateur-ch U2000 2019"]
[Site "Rhodes"]
[Date "2019.04.13"]
[Round "8.5"]
[White "Bozinovic, Boban"]
[Black "Zakharov, Denis"]
[Result "1/2-1/2"]
[ECO "B09"]
[WhiteElo "1950"]
[BlackElo "1889"]
[Annotator "NA"]
[PlyCount "123"]
[EventDate "2019.04.06"]
[EventType "swiss"]
[EventCountry "GRE"]
[SourceTitle "playchess.com"]
[Source "ChessBase"]
[SourceQuality "1"]
[TimeControl "40/5400+30:1800+30"]

1. e4 {[%emt 0:00:00]} d6 {[%emt 0:00:00]} 2. d4 {[%emt 0:00:00]} Nf6 {[%emt 0:00:00]} 3. Nc3 {[%emt 0:00:00]} g6 {[%emt 0:00:13]} 4. f4 {[%emt 0:00:00]} Bg7 {[%emt 0:00:03]} 5. Nf3 {[%emt 0:00:01]} O-O {[%emt 0:00:13]} 6. Bd3 {[%emt 0:00:10]} Nc6 {[%emt 0:00:33]} 7. e5 {[%emt 0:00:29]} Nd7 {[%emt 0:00:17]} 8. O-O {[%emt 0:03:09]} Nb4 {[%emt 0:03:25]} 9. Bc4 {[%emt 0:11:21]} Nb6 {[%emt 0:00:49]} 10. Bb3 {[%emt 0:00:29]} a5 {[%emt 0:06:07]} 11. a3 {[%emt 0:00:23]} a4 {[%emt 0:02:18]} 12. Nxa4 {[%emt 0:08:11]} Nxa4 {[%emt 0:00:13]} 13. Bxa4 {[%emt 0:00:24]} Rxa4 {[%emt 0:05:12]} 14. c3 {[%emt 0:01:58]} Ra6 {[%emt 0:00:51]} 15. cxb4 {[%emt 0:00:07]} Bf5 {[%emt 0:00:27]} 16. b5 {[%emt 0:02:54]} Rb6 {[%emt 0:06:17]} 17. a4 {[%emt 0:02:05]} c6 {[%emt 0:00:05]} 18. Bd2 {[%emt 0:02:37]} Qa8 {[%emt 0:00:48]} 19. d5 {[%emt 0:25:46]} cxb5 {[%emt 0:06:51]} 20. axb5 {[%emt 0:00:57]} Qe8 {[%emt 0:00:12]} 21. Be3 {[%emt 0:13:14]} Rxb5 {[%emt 0:00:38]} 22. Nd4 {[%emt 0:11:37]} Rxd5 {[%emt 0:07:31]} 23. Qf3 {[%emt 0:00:08]} Be6 {[%emt 0:00:24]} 24. Rad1 {[%emt 0:08:29]} dxe5 {[%emt 0:06:13]} 25. Nxe6 {[%emt 0:01:25]} Rxd1 {[%emt 0:00:21]} 26. Rxd1 {[%emt 0:00:21]} fxe6 {[%emt 0:00:14]} 27. Qxb7 {[%emt 0:00:25]} exf4 {[%emt 0:00:12]} 28. Bc5 {[%emt 0:00:47]} Bf6 {[%emt 0:03:41]} 29. b4 {[%emt 0:00:36]} Qa8 {[%emt 0:01:13]} 30. Qb6 {[%emt 0:00:44]} Kf7 {[%emt 0:00:35]} 31. Qc7 {[%emt 0:01:32]} Qb8 {[%emt 0:02:10]} 32. Qc6 {[%emt 0:00:55]} Rc8 {[%emt 0:00:42]} 33. Qf3 {[%emt 0:00:44]} Qe5 {[%emt 0:07:03]} 34. h3 {[%emt 0:00:35]} Qf5 {[%emt 0:04:43]} 35. Rf1 {[%emt 0:01:58]} e5 {[%emt 0:01:37]} 36. Qd5+ {[%emt 0:02:13]} Qe6 {[%emt 0:00:16]} 37. Qe4 {[%emt 0:00:07]} Qc6 {[%emt 0:00:47]} 38. Qc4+ {[%emt 0:00:11]} e6 {[%emt 0:00:36]} 39. Qe2 {[%emt 0:00:41]} Rd8 {[%emt 0:00:44]} 40. Re1 {[%emt 0:00:00]} Qd5 {[%emt 0:00:00]} 41. Qe4 {[%emt 0:05:14]} Be7 {[%emt 0:05:56]} 42. Bxe7 {[%emt 0:04:35]} Kxe7 {[%emt 0:03:34]} 43. Qxe5 {[%emt 0:00:55]} Qxe5 {[%emt 0:01:03]} 44. Rxe5 {[%emt 0:00:03]} Rd1+ {[%emt 0:00:13]} 45. Kf2 {[%emt 0:00:15]} Kd6 {[%emt 0:00:05]} 46. Rb5 {[%emt 0:03:51]} Rb1 {[%emt 0:00:16]} 47. Rb7 {[%emt 0:00:34]} h6 {[%emt 0:00:39]} 48. Rh7 {[%emt 0:03:54]} Rxb4 {[%emt 0:00:42]} 49. Rxh6 {[%emt 0:00:12]} g5 {[%emt 0:00:55]} 50. Rh5 {[%emt 0:01:14]} Rb2+ {[%emt 0:00:08]} 51. Kf3 {[%emt 0:01:47]} Rb3+ {[%emt 0:00:02]} 52. Kf2 {[%emt 0:00:58]} Rg3 {[%emt 0:00:02]} 53. h4 {[%emt 0:05:23]} gxh4 {[%emt 0:02:11]} 54. Rxh4 {[%emt 0:00:05]} e5 {[%emt 0:00:24]} 55. Rh8 {[%emt 0:01:34]} e4 {[%emt 0:00:44]} 56. Re8 {[%emt 0:00:30]} e3+ {[%emt 0:00:17]} 57. Kf1 {[%emt 0:00:24]} Rg5 {[%emt 0:00:26]} 58. Re4 {[%emt 0:01:35]} Rg4 {[%emt 0:00:42]} 59. g3 {[%emt 0:03:42]} Kd5 {[%emt 0:02:38]} 60. Rxf4 {[%emt 0:00:14]} Rxg3 {[%emt 0:00:07]} 61. Ke2 {[%emt 0:00:37]} Ke5 {[%emt 0:00:27]} 62. Rf8 {[%emt 0:00:11]} 1/2-1/2

[Event "European Amateur-ch U2000 2019"]
[Site "Rhodes"]
[Date "2019.04.13"]
[Round "8.6"]
[White "Suliborski, Artur"]
[Black "Nagy, Laszlo Bence"]
[Result "1/2-1/2"]
[ECO "B90"]
[WhiteElo "1926"]
[BlackElo "1978"]
[Annotator "NA"]
[PlyCount "113"]
[EventDate "2019.04.06"]
[EventType "swiss"]
[EventCountry "GRE"]
[SourceTitle "playchess.com"]
[Source "ChessBase"]
[SourceQuality "1"]
[TimeControl "40/5400+30:1800+30"]

1. e4 {[%emt 0:00:00]} c5 {[%emt 0:00:00]} 2. Nf3 {[%emt 0:00:00]} d6 {[%emt 0:00:00]} 3. d4 {[%emt 0:00:00]} cxd4 {[%emt 0:00:00]} 4. Nxd4 {[%emt 0:00:00]} Nf6 {[%emt 0:00:05]} 5. Nc3 {[%emt 0:00:00]} a6 {[%emt 0:00:08]} 6. h3 {[%emt 0:00:00]} e5 {[%emt 0:00:27]} 7. Nde2 {[%emt 0:00:00]} h5 {[%emt 0:00:47]} 8. Bg5 {[%emt 0:00:00]} Be7 {[%emt 0:00:07]} 9. Bxf6 {[%emt 0:02:33]} Bxf6 {[%emt 0:00:43]} 10. g3 {[%emt 0:00:03]} Be6 {[%emt 0:05:42]} 11. Bg2 {[%emt 0:00:45]} Nc6 {[%emt 0:02:52]} 12. Nd5 {[%emt 0:05:19]} Bxd5 {[%emt 0:02:22]} 13. exd5 {[%emt 0:01:26]} Nd4 {[%emt 0:05:54]} 14. O-O {[%emt 0:06:47]} Nxe2+ {[%emt 0:01:57]} 15. Qxe2 {[%emt 0:00:03]} h4 {[%emt 0:00:45]} 16. c4 {[%emt 0:00:52]} Qb6 {[%emt 0:04:22]} 17. Kh2 {[%emt 0:01:06]} Ke7 {[%emt 0:14:37]} 18. b4 {[%emt 0:04:49]} hxg3+ {[%emt 0:06:48]} 19. fxg3 {[%emt 0:00:02]} Rac8 {[%emt 0:02:52]} 20. Rab1 {[%emt 0:05:06]} Rc7 {[%emt 0:05:52]} 21. Rfd1 {[%emt 0:07:56]} Rd8 {[%emt 0:00:39]} 22. Bf3 {[%emt 0:01:47]} Kf8 {[%emt 0:06:36]} 23. h4 {[%emt 0:13:16]} a5 {[%emt 0:08:55]} 24. a3 {[%emt 0:00:25]} axb4 {[%emt 0:02:27]} 25. axb4 {[%emt 0:00:02]} Qa6 {[%emt 0:00:50]} 26. Rdc1 {[%emt 0:00:20]} Qa3 {[%emt 0:03:49]} 27. Be4 {[%emt 0:06:15]} Qa7 {[%emt 0:05:44]} 28. c5 {[%emt 0:10:48]} dxc5 {[%emt 0:04:22]} 29. bxc5 {[%emt 0:00:29]} Rxc5 {[%emt 0:00:43]} 30. Rxc5 {[%emt 0:00:30]} Qxc5 {[%emt 0:00:07]} 31. Rxb7 {[%emt 0:00:09]} Qc8 {[%emt 0:04:30]} 32. Qb5 {[%emt 0:01:51]} Qc3 {[%emt 0:01:05]} 33. Ra7 {[%emt 0:11:28]} Qd2+ {[%emt 0:00:11]} 34. Bg2 {[%emt 0:00:21]} e4 {[%emt 0:00:44]} 35. Qc5+ {[%emt 0:05:35]} Kg8 {[%emt 0:00:58]} 36. Qc7 {[%emt 0:00:26]} Qxd5 {[%emt 0:01:03]} 37. Ra5 {[%emt 0:01:50]} Qe6 {[%emt 0:01:23]} 38. Qc2 {[%emt 0:01:34]} e3 {[%emt 0:01:02]} 39. Qe2 {[%emt 0:05:50]} Rd2 {[%emt 0:01:34]} 40. Ra8+ {[%emt 0:00:00]} Bd8 {[%emt 0:00:00]} 41. Qxd2 {[%emt 0:00:25]} exd2 {[%emt 0:01:36]} 42. Rxd8+ {[%emt 0:00:05]} Kh7 {[%emt 0:00:08]} 43. Rxd2 {[%emt 0:00:04]} Qe1 {[%emt 0:05:12]} 44. Rd4 {[%emt 0:00:28]} f6 {[%emt 0:00:42]} 45. Rf4 {[%emt 0:00:48]} Kg6 {[%emt 0:00:16]} 46. Be4+ {[%emt 0:00:34]} Kf7 {[%emt 0:00:18]} 47. Bd5+ {[%emt 0:00:14]} Kf8 {[%emt 0:00:25]} 48. Bg2 {[%emt 0:00:59]} Qd2 {[%emt 0:00:29]} 49. Kh3 {[%emt 0:01:14]} Ke7 {[%emt 0:00:58]} 50. Re4+ {[%emt 0:00:26]} Kd6 {[%emt 0:00:17]} 51. Re8 {[%emt 0:00:30]} Qc2 {[%emt 0:00:57]} 52. Re4 {[%emt 0:01:30]} f5 {[%emt 0:00:50]} 53. Rd4+ {[%emt 0:02:57]} Ke5 {[%emt 0:00:54]} 54. Rd5+ {[%emt 0:00:08]} Ke6 {[%emt 0:00:07]} 55. Rd4 {[%emt 0:00:09]} Qc3 {[%emt 0:00:42]} 56. Rf4 {[%emt 0:01:05]} Ke5 {[%emt 0:00:49]} 57. Kh2 {[%emt 0:00:25]} 1/2-1/2

[Event "European Amateur-ch U2000 2019"]
[Site "Rhodes"]
[Date "2019.04.13"]
[Round "8.7"]
[White "Petukhov, Igor"]
[Black "Krzysztynska, Anna"]
[Result "0-1"]
[ECO "C50"]
[WhiteElo "1819"]
[BlackElo "1844"]
[Annotator "NA"]
[PlyCount "62"]
[EventDate "2019.04.06"]
[EventType "swiss"]
[EventCountry "GRE"]
[SourceTitle "playchess.com"]
[Source "ChessBase"]
[SourceQuality "1"]
[TimeControl "40/5400+30:1800+30"]

1. e4 {[%emt 0:00:00]} e5 {[%emt 0:00:00]} 2. Nf3 {[%emt 0:00:00]} Nc6 {[%emt 0:00:00]} 3. Bc4 {[%emt 0:00:10]} Bc5 {[%emt 0:00:12]} 4. d4 {[%emt 0:00:42]} exd4 {[%emt 0:09:59]} 5. O-O {[%emt 0:00:30]} h6 {[%emt 0:16:22]} 6. c3 {[%emt 0:00:48]} dxc3 {[%emt 0:04:51]} 7. Bxf7+ {[%emt 0:05:25]} Kxf7 {[%emt 0:01:08]} 8. Qd5+ {[%emt 0:00:13]} Kf8 {[%emt 0:00:36]} 9. Qxc5+ {[%emt 0:00:16]} d6 {[%emt 0:00:36]} 10. Qa3 {[%emt 0:03:42]} Bg4 {[%emt 0:14:49]} 11. Nxc3 {[%emt 0:06:04]} Bxf3 {[%emt 0:03:32]} 12. gxf3 {[%emt 0:00:03]} Nd4 {[%emt 0:04:20]} 13. Nd5 {[%emt 0:07:10]} Nf6 {[%emt 0:16:27]} 14. Qd3 {[%emt 0:03:20]} c5 {[%emt 0:01:41]} 15. Nf4 {[%emt 0:03:59]} Qe8 {[%emt 0:05:22]} 16. b4 {[%emt 0:04:26]} Nd7 {[%emt 0:01:02]} 17. bxc5 {[%emt 0:10:24]} Ne5 {[%emt 0:02:02]} 18. Qc3 {[%emt 0:04:28]} g5 {[%emt 0:00:59]} 19. Kh1 {[%emt 0:01:28]} Nexf3 {[%emt 0:00:44]} 20. Be3 {[%emt 0:02:32]} gxf4 {[%emt 0:03:00]} 21. Bxf4 {[%emt 0:08:22]} Qxe4 {[%emt 0:00:59]} 22. Bxd6+ {[%emt 0:02:09]} Kf7 {[%emt 0:01:02]} 23. Qe3 {[%emt 0:10:07]} Qd5 {[%emt 0:02:59]} 24. Rad1 {[%emt 0:05:59]} Rae8 {[%emt 0:01:29]} 25. Qf4+ {[%emt 0:02:17]} Kg6 {[%emt 0:00:49]} 26. Rxd4 {[%emt 0:02:04]} Nxd4+ {[%emt 0:00:22]} 27. f3 {[%emt 0:00:28]} Nf5 {[%emt 0:01:19]} 28. Rg1+ {[%emt 0:03:43]} Kf6 {[%emt 0:00:17]} 29. h4 {[%emt 0:02:49]} Rhg8 {[%emt 0:00:41]} 30. Rf1 {[%emt 0:02:04]} Qxa2 {[%emt 0:00:29]} 31. Qb4 {[%emt 0:01:36]} Qg2# {[%emt 0:00:08]} 0-1

[Event "European Amateur-ch U2000 2019"]
[Site "Rhodes"]
[Date "2019.04.13"]
[Round "8.8"]
[White "Zanfir, Iulian"]
[Black "Mohnblatt, Daniel"]
[Result "1-0"]
[ECO "D05"]
[WhiteElo "1699"]
[BlackElo "1708"]
[Annotator "NA"]
[PlyCount "86"]
[EventDate "2019.04.06"]
[EventType "swiss"]
[EventCountry "GRE"]
[SourceTitle "playchess.com"]
[Source "ChessBase"]
[SourceQuality "1"]
[TimeControl "40/5400+30:1800+30"]

1. d4 {[%emt 0:00:00]} Nf6 {[%emt 0:00:00]} 2. Nf3 {[%emt 0:00:00]} e6 {[%emt 0:00:00]} 3. Nbd2 {[%emt 0:00:04]} d5 {[%emt 0:00:13]} 4. e3 {[%emt 0:00:10]} c5 {[%emt 0:00:09]} 5. c3 {[%emt 0:00:14]} Be7 {[%emt 0:00:13]} 6. Bd3 {[%emt 0:00:33]} Nc6 {[%emt 0:00:17]} 7. O-O {[%emt 0:00:19]} O-O {[%emt 0:00:27]} 8. dxc5 {[%emt 0:00:19]} Bxc5 {[%emt 0:00:07]} 9. e4 {[%emt 0:00:24]} dxe4 {[%emt 0:00:40]} 10. Nxe4 {[%emt 0:00:11]} Nxe4 {[%emt 0:00:11]} 11. Bxe4 {[%emt 0:00:07]} Qc7 {[%emt 0:00:27]} 12. Qe2 {[%emt 0:06:15]} Ne7 {[%emt 0:02:01]} 13. Rd1 {[%emt 0:05:22]} Bd7 {[%emt 0:00:36]} 14. Ne5 {[%emt 0:00:26]} Bc6 {[%emt 0:00:13]} 15. Bf4 {[%emt 0:16:33]} Bd6 {[%emt 0:03:05]} 16. Rxd6 {[%emt 0:05:11]} Qxd6 {[%emt 0:00:02]} 17. Nxc6 {[%emt 0:04:07]} Qxf4 {[%emt 0:00:28]} 18. Nxe7+ {[%emt 0:00:41]} Kh8 {[%emt 0:00:02]} 19. Bxb7 {[%emt 0:00:59]} Rab8 {[%emt 0:00:14]} 20. Bf3 {[%emt 0:00:34]} Qf6 {[%emt 0:01:53]} 21. Nc6 {[%emt 0:00:35]} Rb6 {[%emt 0:00:37]} 22. Rd1 {[%emt 0:04:13]} h6 {[%emt 0:01:56]} 23. Rd2 {[%emt 0:03:15]} Qg5 {[%emt 0:01:14]} 24. Qe3 {[%emt 0:01:32]} a6 {[%emt 0:02:21]} 25. Qxg5 {[%emt 0:01:44]} hxg5 {[%emt 0:00:01]} 26. Ne5 {[%emt 0:01:06]} Rb5 {[%emt 0:02:38]} 27. Nc4 {[%emt 0:02:34]} Rfb8 {[%emt 0:00:46]} 28. b3 {[%emt 0:00:17]} g4 {[%emt 0:02:25]} 29. Bc6 {[%emt 0:00:22]} Rc5 {[%emt 0:00:26]} 30. Be4 {[%emt 0:01:24]} f5 {[%emt 0:00:36]} 31. Bc2 {[%emt 0:00:15]} Rc6 {[%emt 0:02:28]} 32. g3 {[%emt 0:00:26]} Kh7 {[%emt 0:02:05]} 33. Rd6 {[%emt 0:00:22]} Rxd6 {[%emt 0:00:33]} 34. Nxd6 {[%emt 0:00:05]} Kg6 {[%emt 0:00:14]} 35. c4 {[%emt 0:00:25]} Kf6 {[%emt 0:00:16]} 36. a3 {[%emt 0:00:34]} a5 {[%emt 0:00:28]} 37. Nb5 {[%emt 0:00:17]} Rd8 {[%emt 0:00:17]} 38. b4 {[%emt 0:05:14]} axb4 {[%emt 0:00:10]} 39. axb4 {[%emt 0:00:07]} Rd2 {[%emt 0:00:06]} 40. Na3 {[%emt 0:00:00]} Ke5 {[%emt 0:00:00]} 41. Kg2 {[%emt 0:05:40]} g5 {[%emt 0:01:33]} 42. c5 {[%emt 0:00:16]} f4 {[%emt 0:00:34]} 43. Nc4+ {[%emt 0:00:12]} Kd5 {[%emt 0:01:55]} 1-0

[Event "European Amateur-ch U2000 2019"]
[Site "Rhodes"]
[Date "2019.04.13"]
[Round "8.9"]
[White "Minko, Olga"]
[Black "Wlogalski, Olivier"]
[Result "0-1"]
[ECO "A80"]
[WhiteElo "1833"]
[BlackElo "1853"]
[Annotator "NA"]
[PlyCount "66"]
[EventDate "2019.04.06"]
[EventType "swiss"]
[EventCountry "GRE"]
[SourceTitle "playchess.com"]
[Source "ChessBase"]
[SourceQuality "1"]
[TimeControl "40/5400+30:1800+30"]

1. d4 {[%emt 0:00:29]} f5 {[%emt 0:00:57]} 2. h3 {[%emt 0:00:08]} d5 {[%emt 0:00:07]} 3. f3 {[%emt 0:01:30]} e6 {[%emt 0:00:34]} 4. Be3 {[%emt 0:00:42]} Bd6 {[%emt 0:02:03]} 5. Bf2 {[%emt 0:02:00]} Nf6 {[%emt 0:01:49]} 6. g4 {[%emt 0:01:39]} O-O {[%emt 0:02:58]} 7. Bg2 {[%emt 0:07:21]} Qe7 {[%emt 0:00:38]} 8. Nc3 {[%emt 0:14:56]} c6 {[%emt 0:00:11]} 9. Qd3 {[%emt 0:01:28]} b6 {[%emt 0:03:53]} 10. e4 {[%emt 0:03:35]} Ba6 {[%emt 0:00:36]} 11. Qe3 {[%emt 0:01:45]} fxe4 {[%emt 0:02:07]} 12. fxe4 {[%emt 0:00:38]} Nxe4 {[%emt 0:01:37]} 13. Nxe4 {[%emt 0:00:52]} dxe4 {[%emt 0:00:06]} 14. Bxe4 {[%emt 0:01:59]} Bc4 {[%emt 0:01:14]} 15. Ne2 {[%emt 0:02:13]} Bd5 {[%emt 0:01:54]} 16. Qd3 {[%emt 0:04:14]} Bxe4 {[%emt 0:02:42]} 17. Qxe4 {[%emt 0:00:10]} Na6 {[%emt 0:09:33]} 18. Rf1 {[%emt 0:01:44]} Nb4 {[%emt 0:01:10]} 19. c3 {[%emt 0:01:09]} Nd5 {[%emt 0:00:26]} 20. O-O-O {[%emt 0:00:19]} b5 {[%emt 0:00:31]} 21. Kb1 {[%emt 0:02:30]} Rae8 {[%emt 0:02:12]} 22. Ng3 {[%emt 0:10:59]} Qc7 {[%emt 0:02:21]} 23. Qg2 {[%emt 0:19:03]} Rxf2 {[%emt 0:07:30]} 24. Qxf2 {[%emt 0:00:50]} Bxg3 {[%emt 0:00:07]} 25. Qf3 {[%emt 0:02:27]} Bd6 {[%emt 0:01:17]} 26. Qe4 {[%emt 0:01:00]} a5 {[%emt 0:00:28]} 27. g5 {[%emt 0:00:43]} a4 {[%emt 0:00:23]} 28. Rd3 {[%emt 0:06:25]} a3 {[%emt 0:07:17]} 29. b4 {[%emt 0:00:18]} Qe7 {[%emt 0:02:42]} 30. g6 {[%emt 0:01:50]} h6 {[%emt 0:01:36]} 31. Rdf3 {[%emt 0:00:36]} Qg5 {[%emt 0:01:54]} 32. R1f2 {[%emt 0:02:36]} Qg1+ {[%emt 0:00:15]} 33. Rf1 {[%emt 0:00:15]} Qxf1+ {[%emt 0:00:10]} 0-1

[Event "European Amateur-ch U2000 2019"]
[Site "Rhodes"]
[Date "2019.04.14"]
[Round "9.1"]
[White "Demirbas, Emre"]
[Black "Flis, Pawel"]
[Result "1-0"]
[ECO "B25"]
[WhiteElo "1960"]
[BlackElo "1903"]
[Annotator "NA"]
[PlyCount "77"]
[EventDate "2019.04.06"]
[EventType "swiss"]
[EventCountry "GRE"]
[SourceTitle "playchess.com"]
[Source "ChessBase"]
[SourceQuality "1"]
[TimeControl "40/5400+30:1800+30"]

1. e4 {[%emt 0:00:00]} c5 {[%emt 0:00:00]} 2. Nc3 {[%emt 0:00:00]} d6 {[%emt 0:00:00]} 3. g3 {[%emt 0:00:00]} Nc6 {[%emt 0:00:02]} 4. Bg2 {[%emt 0:00:00]} g6 {[%emt 0:00:10]} 5. d3 {[%emt 0:00:00]} Bg7 {[%emt 0:00:05]} 6. f4 {[%emt 0:00:00]} e6 {[%emt 0:00:26]} 7. Nf3 {[%emt 0:00:00]} Nge7 {[%emt 0:00:17]} 8. Be3 {[%emt 0:00:10]} Nd4 {[%emt 0:00:34]} 9. O-O {[%emt 0:00:21]} O-O {[%emt 0:00:10]} 10. Rb1 {[%emt 0:01:27]} Rb8 {[%emt 0:01:26]} 11. Ne2 {[%emt 0:01:07]} Nxf3+ {[%emt 0:02:46]} 12. Bxf3 {[%emt 0:00:55]} Nc6 {[%emt 0:02:49]} 13. c3 {[%emt 0:04:40]} b6 {[%emt 0:09:21]} 14. d4 {[%emt 0:01:53]} cxd4 {[%emt 0:11:39]} 15. Nxd4 {[%emt 0:00:06]} Ne7 {[%emt 0:01:00]} 16. Nb5 {[%emt 0:13:03]} d5 {[%emt 0:08:11]} 17. exd5 {[%emt 0:03:56]} exd5 {[%emt 0:08:41]} 18. Bd4 {[%emt 0:00:39]} Bf5 {[%emt 0:08:47]} 19. Bxg7 {[%emt 0:02:07]} Kxg7 {[%emt 0:00:07]} 20. Qd4+ {[%emt 0:00:03]} Kg8 {[%emt 0:00:19]} 21. Rbd1 {[%emt 0:01:16]} a6 {[%emt 0:01:52]} 22. Na3 {[%emt 0:02:26]} Qc7 {[%emt 0:09:44]} 23. Rfe1 {[%emt 0:07:33]} Rbd8 {[%emt 0:07:25]} 24. g4 {[%emt 0:03:15]} Be6 {[%emt 0:05:11]} 25. Nc2 {[%emt 0:00:01]} Nc6 {[%emt 0:01:08]} 26. Qd2 {[%emt 0:04:57]} d4 {[%emt 0:06:13]} 27. Bxc6 {[%emt 0:03:32]} Qxc6 {[%emt 0:00:05]} 28. Nxd4 {[%emt 0:00:05]} Qc5 {[%emt 0:00:44]} 29. b4 {[%emt 0:03:07]} Qc4 {[%emt 0:01:30]} 30. f5 {[%emt 0:00:46]} Bc8 {[%emt 0:00:33]} 31. f6 {[%emt 0:01:24]} Kh8 {[%emt 0:00:10]} 32. Qh6 {[%emt 0:05:08]} Rg8 {[%emt 0:00:31]} 33. g5 {[%emt 0:01:08]} Bg4 {[%emt 0:00:54]} 34. Rc1 {[%emt 0:01:49]} Qxa2 {[%emt 0:03:14]} 35. Re4 {[%emt 0:02:56]} Bh5 {[%emt 0:05:49]} 36. Rce1 {[%emt 0:00:01]} Qa4 {[%emt 0:01:54]} 37. Re7 {[%emt 0:01:02]} Rdf8 {[%emt 0:01:38]} 38. Ne6 {[%emt 0:00:02]} fxe6 {[%emt 0:03:01]} 39. Qxh7# {[%emt 0:00:07]} 1-0

[Event "European Amateur-ch U2000 2019"]
[Site "Rhodes"]
[Date "2019.04.14"]
[Round "9.3"]
[White "Krzysztynska, Anna"]
[Black "Kostov, Deyan Samuil"]
[Result "1/2-1/2"]
[ECO "A48"]
[WhiteElo "1844"]
[BlackElo "1830"]
[Annotator "NA"]
[PlyCount "50"]
[EventDate "2019.04.06"]
[EventType "swiss"]
[EventCountry "GRE"]
[SourceTitle "playchess.com"]
[Source "ChessBase"]
[SourceQuality "1"]
[TimeControl "40/5400+30:1800+30"]

1. d4 {[%emt 0:00:00]} Nf6 {[%emt 0:00:00]} 2. Bf4 {[%emt 0:00:00]} d6 {[%emt 0:00:00]} 3. Nf3 {[%emt 0:00:04]} g6 {[%emt 0:00:14]} 4. e3 {[%emt 0:00:21]} Bg7 {[%emt 0:00:05]} 5. Be2 {[%emt 0:00:38]} O-O {[%emt 0:00:18]} 6. h3 {[%emt 0:00:31]} Nbd7 {[%emt 0:00:12]} 7. O-O {[%emt 0:00:22]} c5 {[%emt 0:00:22]} 8. c3 {[%emt 0:00:29]} b6 {[%emt 0:00:47]} 9. Na3 {[%emt 0:02:59]} Bb7 {[%emt 0:02:24]} 10. Re1 {[%emt 0:03:38]} a6 {[%emt 0:01:57]} 11. Nc2 {[%emt 0:01:16]} Qc7 {[%emt 0:01:30]} 12. Bh2 {[%emt 0:03:41]} Rac8 {[%emt 0:05:10]} 13. Nd2 {[%emt 0:10:32]} Rfd8 {[%emt 0:06:08]} 14. Bf3 {[%emt 0:03:24]} Bxf3 {[%emt 0:08:45]} 15. Nxf3 {[%emt 0:01:48]} e5 {[%emt 0:07:02]} 16. Qe2 {[%emt 0:16:59]} c4 {[%emt 0:17:40]} 17. Rad1 {[%emt 0:09:05]} Ne4 {[%emt 0:06:04]} 18. Nd2 {[%emt 0:07:03]} Nxd2 {[%emt 0:08:04]} 19. Qxd2 {[%emt 0:01:13]} a5 {[%emt 0:06:48]} 20. f3 {[%emt 0:08:14]} Nf8 {[%emt 0:03:54]} 21. Qf2 {[%emt 0:04:56]} Ne6 {[%emt 0:01:59]} 22. Kh1 {[%emt 0:02:53]} f5 {[%emt 0:03:54]} 23. Rf1 {[%emt 0:04:17]} b5 {[%emt 0:04:23]} 24. a3 {[%emt 0:01:33]} Rd7 {[%emt 0:00:28]} 25. Qe2 {[%emt 0:03:26]} Rcd8 {[%emt 0:02:09]} 1/2-1/2

[Event "European Amateur-ch U2000 2019"]
[Site "Rhodes"]
[Date "2019.04.14"]
[Round "9.7"]
[White "Zanfir, Iulian"]
[Black "Zakharov, Denis"]
[Result "1-0"]
[ECO "A48"]
[WhiteElo "1699"]
[BlackElo "1889"]
[Annotator "NA"]
[PlyCount "63"]
[EventDate "2019.04.06"]
[EventType "swiss"]
[EventCountry "GRE"]
[SourceTitle "playchess.com"]
[Source "ChessBase"]
[SourceQuality "1"]
[TimeControl "40/5400+30:1800+30"]

1. d4 {[%emt 0:00:00]} d6 {[%emt 0:00:00]} 2. Nf3 {[%emt 0:00:10]} Nf6 {[%emt 0:00:38]} 3. h3 {[%emt 0:00:38]} g6 {[%emt 0:00:31]} 4. Bf4 {[%emt 0:00:08]} Bg7 {[%emt 0:00:13]} 5. e3 {[%emt 0:00:17]} O-O {[%emt 0:00:20]} 6. Be2 {[%emt 0:00:23]} Nbd7 {[%emt 0:00:48]} 7. O-O {[%emt 0:01:35]} Re8 {[%emt 0:00:19]} 8. c4 {[%emt 0:02:11]} e5 {[%emt 0:02:19]} 9. Bh2 {[%emt 0:00:08]} e4 {[%emt 0:00:14]} 10. Nfd2 {[%emt 0:00:07]} Nf8 {[%emt 0:00:14]} 11. Nc3 {[%emt 0:02:03]} h5 {[%emt 0:00:19]} 12. Qc2 {[%emt 0:04:27]} Bf5 {[%emt 0:00:20]} 13. b4 {[%emt 0:02:56]} Ne6 {[%emt 0:01:20]} 14. Qb3 {[%emt 0:03:48]} Ng5 {[%emt 0:00:52]} 15. c5 {[%emt 0:05:49]} a6 {[%emt 0:02:11]} 16. cxd6 {[%emt 0:01:35]} cxd6 {[%emt 0:00:04]} 17. b5 {[%emt 0:02:56]} Nfh7 {[%emt 0:04:17]} 18. Kh1 {[%emt 0:06:38]} Nf6 {[%emt 0:05:28]} 19. Rac1 {[%emt 0:05:08]} Qd7 {[%emt 0:00:23]} 20. Nd5 {[%emt 0:04:02]} Bxh3 {[%emt 0:04:04]} 21. Nxf6+ {[%emt 0:04:45]} Bxf6 {[%emt 0:00:05]} 22. gxh3 {[%emt 0:02:06]} Qxh3 {[%emt 0:00:01]} 23. Rg1 {[%emt 0:00:17]} Rec8 {[%emt 0:02:40]} 24. Rb1 {[%emt 0:02:38]} axb5 {[%emt 0:01:48]} 25. Rbf1 {[%emt 0:03:23]} Rc7 {[%emt 0:06:01]} 26. f4 {[%emt 0:01:23]} exf3 {[%emt 0:00:41]} 27. Nxf3 {[%emt 0:00:16]} Nxf3 {[%emt 0:00:53]} 28. Rxf3 {[%emt 0:00:14]} Qh4 {[%emt 0:02:56]} 29. Rf4 {[%emt 0:01:14]} Rac8 {[%emt 0:01:39]} 30. Rxh4 {[%emt 0:01:08]} Bxh4 {[%emt 0:00:02]} 31. Rxg6+ {[%emt 0:00:25]} Kh8 {[%emt 0:00:35]} 32. Rg1 {[%emt 0:00:34]} 1-0